bitfinex/quotes_SOLUSD_20241225
["timestamp","ask_amount","ask_price","bid_price","bid_amount"]
[1735121824619,6.0282,199.24,199.16,23.776884]
[1735121825318,6.0282,199.24,199.12,1.5267]
[1735121825515,0.94120538,199.23,199.12,20.0]
[1735121825710,0.94120538,199.23,199.07,30.0]
[1735121826121,0.94120538,199.23,199.08,0.12549]
[1735121826426,20.0,199.21,199.07,30.0]
[1735121826605,13.49164751,199.2,199.06,1.5267]
[1735121826799,13.49164751,199.2,199.03,30.0]
[1735121827610,20.0,199.17,199.01,30.0]
[1735121827812,0.94163837,199.16,199.03,30.0]
[1735121828017,0.94159026,199.19,199.04,0.12549]
[1735121828200,0.94159026,199.19,199.03,30.0]
[1735121828395,0.94159026,199.19,199.01,30.0]
[1735121828706,12.5514,199.18,199.01,30.0]
[1735121828899,0.94171564,199.17,199.01,30.0]
[1735121830125,0.94171564,199.17,199.03,0.12549]
[1735121830836,0.94171564,199.17,199.05,0.12549]
[1735121831624,6.0282,199.15,199.01,20.0]
[1735121831835,0.94181139,199.14,199.0,31.5267]
[1735121832146,0.94181139,199.14,199.01,0.12549]
[1735121833202,0.94181139,199.14,199.0,20.0]
[1735121833409,12.5546,199.13,199.0,20.0]
[1735121833625,12.5546,199.13,198.97,30.0]
[1735121833626,0.94185056,199.12,198.97,30.0]
[1735121833810,0.94185056,199.12,198.98,0.12549]
[1735121834231,0.94185056,199.12,198.95,30.0]
[1735121834630,20.0,199.1,198.94,1.5267]
[1735121834810,13.49916488,199.09,198.94,1.5267]
[1735121835458,13.49916488,199.09,198.92,12.5675]
[1735121835459,6.5314,199.08,198.9,30.0]
[1735121835607,0.94217288,199.07,198.9,30.0]
[1735121836630,0.94217288,199.07,198.93,23.902374]
[1735121836830,0.94205994,199.06,198.95,23.902374]
[1735121837014,0.94204904,199.07,198.95,23.902374]
[1735121838123,0.94204904,199.07,198.93,0.12549]
[1735121838323,0.94204904,199.07,198.91,12.5682]
[1735121839035,0.94204904,199.07,198.92,0.12549]
[1735121839620,0.94204904,199.07,198.92,23.902374]
[1735121839820,12.559,199.06,198.91,23.902374]
[1735121840033,0.94220127,199.05,198.91,23.902374]
[1735121840240,0.94220127,199.05,198.86,31.6258]
[1735121840939,0.94220127,199.05,198.87,0.12549]
[1735121841136,20.0,199.03,198.86,31.6258]
[1735121841336,20.0,199.01,198.84,42.5723]
[1735121841522,0.94246884,199.0,198.84,42.5723]
[1735121842032,20.0,199.01,198.87,30.0]
[1735121842223,20.0,199.01,198.89,0.12549]
[1735121842624,0.94240932,199.03,198.89,0.12549]
[1735121843636,0.94240932,199.03,198.89,30.12549]
[1735121843841,6.3413,199.04,198.95,30.0]
[1735121844149,6.3413,199.04,198.93,30.0]
[1735121844328,6.3413,199.04,198.94,23.776884]
[1735121844535,0.94211497,199.03,198.89,12.5691]
[1735121844841,0.94211497,199.03,198.9,0.12549]
[1735121845046,6.3413,199.04,198.92,0.12549]
[1735121845470,0.94214333,199.03,198.92,0.12549]
[1735121845830,0.94214333,199.03,198.89,42.5691]
[1735121846059,0.94214333,199.03,198.91,0.12549]
[1735121847217,0.94214333,199.03,198.87,30.0]
[1735121847218,0.94214333,199.03,198.88,20.0]
[1735121847738,0.94214333,199.03,198.89,0.12549]
[1735121848459,12.5615,199.02,198.89,0.12549]
[1735121848627,0.94233068,199.01,198.89,0.12549]
[1735121848830,0.94233097,199.03,198.89,23.902374]
[1735121849133,20.94233097,199.01,198.84,30.0]
[1735121849329,20.94233097,199.01,198.85,0.12549]
[1735121849832,6.3413,199.0,198.84,42.5723]
[1735121850074,0.94251628,198.99,198.84,42.5723]
[1735121850387,0.94251628,198.99,198.82,30.0]
[1735121850603,32.5647,198.97,198.82,30.0]
[1735121850891,0.94263843,198.96,198.82,30.0]
[1735121851484,0.94263843,198.96,198.83,0.12549]
[1735121851692,0.94263843,198.96,198.82,30.0]
[1735121852078,0.94263843,198.96,198.83,23.776884]
[1735121852583,12.5659,198.95,198.8,1.5393]
[1735121852879,6.5024,198.93,198.79,0.12549]
[1735121853187,0.94275768,198.92,198.79,0.12549]
[1735121853850,0.94275768,198.92,198.81,20.0]
[1735121854573,0.94275768,198.92,198.79,23.902374]
[1735121856268,0.94275768,198.92,198.8,30.0]
[1735121856469,6.5024,198.93,198.84,23.902374]
[1735121856766,6.5024,199.02,198.91,23.902374]
[1735121857074,6.5024,199.02,198.93,0.12549]
[1735121857369,6.5024,199.02,198.95,0.12549]
[1735121857606,6.5024,199.02,198.95,23.902374]
[1735121858999,6.5024,199.02,198.9,30.0]
[1735121859000,6.5024,199.02,198.93,20.0]
[1735121859180,0.94212779,199.01,198.9,23.776884]
[1735121859798,0.94212779,199.01,198.91,0.12549]
[1735121860195,0.94212779,199.01,198.89,20.0]
[1735121860820,20.0,198.99,198.86,30.0]
[1735121861018,20.0,198.99,198.87,0.12549]
[1735121861356,6.5024,199.02,198.89,0.12549]
[1735121861621,0.94235706,199.01,198.89,0.12549]
[1735121861811,0.94235706,199.01,198.86,30.0]
[1735121861980,0.94235706,199.01,198.9,23.776884]
[1735121862378,0.94235706,199.01,198.91,0.12549]
[1735121863011,0.94235706,199.01,198.88,23.776884]
[1735121863219,6.5024,199.09,198.95,0.12549]
[1735121863428,6.5024,199.09,198.97,23.902374]
[1735121864108,0.94192388,199.08,198.97,23.902374]
[1735121864312,0.94192388,199.08,198.97,0.12549]
[1735121864505,0.94192388,199.08,198.95,20.0]
[1735121864825,0.94192388,199.08,198.96,23.776884]
[1735121865177,0.94192388,199.08,198.97,0.12549]
[1735121865494,13.49962388,199.08,198.93,23.776884]
[1735121866128,0.94192388,199.08,198.96,0.12549]
[1735121866495,6.5024,199.09,198.98,30.12549]
[1735121866710,6.5024,199.09,199.0,0.12549]
[1735121867383,6.5024,199.09,199.02,0.12549]
[1735121868399,6.1977,199.18,199.02,0.12549]
[1735121868720,0.94160804,199.17,199.02,0.12549]
[1735121869134,0.94160804,199.17,199.05,0.12549]
[1735121870727,12.5527,199.16,199.03,20.0]
[1735121870898,0.94170395,199.15,199.03,20.0]
[1735121871238,0.94174378,199.17,199.04,23.902374]
[1735121871423,0.88864725,199.16,199.04,23.902374]
[1735121871726,6.1977,199.18,199.07,0.12549]
[1735121871930,6.1977,199.18,199.07,23.902374]
[1735121872946,0.94147585,199.17,199.07,0.12549]
[1735121873132,0.94147585,199.17,199.06,23.902374]
[1735121874367,6.1977,199.18,199.06,23.902374]
[1735121875031,6.1977,199.18,199.08,23.902374]
[1735121875233,6.1977,199.18,199.11,23.902374]
[1735121875886,6.1977,199.26,199.13,0.12549]
[1735121876032,6.1977,199.26,199.15,23.902374]
[1735121876232,6.1977,199.26,199.17,23.902374]
[1735121877362,6.1977,199.26,199.14,42.5537]
[1735121877540,6.1977,199.26,199.16,0.12549]
[1735121879975,20.0,199.23,199.1,30.0]
[1735121880142,0.94112013,199.22,199.09,12.5565]
[1735121880673,20.94112013,199.22,199.06,30.0]
[1735121881862,13.49022013,199.22,199.06,30.0]
[1735121882039,6.2895,199.21,199.06,30.0]
[1735121882352,0.94150267,199.2,199.07,0.12549]
[1735121883270,0.94150267,199.2,199.05,20.0]
[1735121884188,0.94150267,199.2,199.08,0.12549]
[1735121884502,0.94150267,199.2,199.06,0.12549]
[1735121884791,0.94150267,199.2,199.06,23.902374]
[1735121885290,6.2895,199.21,199.11,23.776884]
[1735121885464,6.2895,199.21,199.12,0.12549]
[1735121885794,6.2895,199.21,199.14,0.12549]
[1735121886490,6.2895,199.29,199.17,0.12549]
[1735121886786,0.94093659,199.28,199.17,23.902374]
[1735121886986,6.2895,199.29,199.17,23.902374]
[1735121888552,6.2895,199.29,199.19,23.902374]
[1735121888772,0.94083573,199.33,199.21,23.902374]
[1735121889277,6.2895,199.34,199.26,30.0]
[1735121889482,6.2895,199.47,199.29,0.12549]
[1735121889668,0.94040718,199.46,199.29,0.12549]
[1735121890393,0.94040718,199.46,199.29,23.776884]
[1735121890688,0.94040718,199.46,199.3,30.12549]
[1735121891257,0.94040718,199.46,199.3,0.12549]
[1735121891452,0.94040718,199.46,199.28,30.0]
[1735121891758,20.0,199.42,199.25,30.27]
[1735121891953,0.94056173,199.41,199.27,0.12549]
[1735121892785,6.2895,199.4,199.21,30.0]
[1735121892976,0.94072363,199.39,199.26,0.12549]
[1735121893480,0.94072363,199.39,199.24,0.12549]
[1735121893865,0.94072363,199.39,199.26,0.12549]
[1735121894558,13.47922363,199.39,199.23,23.776884]
[1735121894757,13.47922363,199.39,199.24,0.12549]
[1735121894961,0.94072363,199.39,199.26,0.12549]
[1735121895266,0.94056477,199.38,199.26,23.902374]
[1735121895473,0.94051755,199.39,199.26,23.902374]
[1735121896056,6.2895,199.4,199.28,0.12549]
[1735121896262,6.2895,199.4,199.28,20.12549]
[1735121896477,6.2895,199.4,199.28,0.12549]
[1735121896682,0.94038767,199.39,199.27,30.0]
[1735121896863,6.2895,199.4,199.31,0.12549]
[1735121897069,6.2895,199.4,199.33,0.12549]
[1735121898262,6.2895,199.4,199.29,42.5439]
[1735121898596,6.2895,199.4,199.31,0.12549]
[1735121899177,6.4309,199.47,199.31,0.12549]
[1735121899380,12.5344,199.45,199.29,20.0]
[1735121899584,0.94040694,199.44,199.29,20.0]
[1735121900393,0.94040694,199.44,199.32,30.12549]
[1735121900572,6.4309,199.47,199.36,0.12549]
[1735121900891,6.4309,199.47,199.37,30.0]
[1735121901278,6.4309,199.47,199.38,0.12549]
[1735121901789,6.4309,199.47,199.37,0.12549]
[1735121902720,6.4309,199.47,199.39,0.12549]
[1735121903297,6.4309,199.47,199.36,20.0]
[1735121903479,0.94012838,199.46,199.37,0.12549]
[1735121903681,0.94012838,199.46,199.33,44.0765]
[1735121904062,6.4309,199.47,199.36,0.12549]
[1735121904367,6.4309,199.47,199.39,0.12549]
[1735121905094,6.4309,199.47,199.38,23.776884]
[1735121905395,6.4309,199.47,199.39,30.12549]
[1735121905782,6.4309,199.47,199.39,0.12549]
[1735121905984,6.4309,199.47,199.37,42.539]
[1735121906379,0.94000277,199.46,199.37,20.0]
[1735121906570,6.4309,199.47,199.36,23.776884]
[1735121907070,6.4309,199.47,199.37,0.12549]
[1735121908000,0.94009045,199.46,199.36,20.0]
[1735121908306,6.4309,199.47,199.35,30.0]
[1735121908794,6.4309,199.47,199.39,23.902374]
[1735121909586,6.4309,199.47,199.42,0.12549]
[1735121909791,6.4924,199.59,199.42,23.902374]
[1735121909980,0.93974575,199.58,199.42,23.902374]
[1735121910298,0.93974575,199.58,199.41,30.0]
[1735121910499,0.93974575,199.58,199.42,0.12549]
[1735121910682,0.93974575,199.58,199.42,23.902374]
[1735121912605,0.93974575,199.58,199.36,31.1242]
[1735121912606,20.0,199.56,199.37,12.539]
[1735121912774,6.3271,199.54,199.4,20.0]
[1735121912973,0.94001689,199.53,199.4,20.0]
[1735121913374,0.94001689,199.53,199.41,0.12549]
[1735121914075,0.93990811,199.56,199.45,23.902374]
[1735121914276,0.93969613,199.61,199.45,0.12549]
[1735121915105,13.46469613,199.61,199.45,0.12549]
[1735121915899,13.46469613,199.61,199.44,20.0]
[1735121916200,6.3271,199.56,199.41,14.129]
[1735121916387,6.3271,199.56,199.42,0.12549]
[1735121916388,0.9398496,199.55,199.42,0.12549]
[1735121917510,0.9398496,199.55,199.44,0.12549]
[1735121917819,0.9398496,199.55,199.43,0.12549]
[1735121918404,0.9398496,199.55,199.41,14.129]
[1735121918574,0.9398496,199.55,199.42,0.12549]
[1735121919023,6.3271,199.56,199.47,0.12549]
[1735121920805,6.3271,199.56,199.46,12.5338]
[1735121921408,6.3271,199.56,199.47,23.902374]
[1735121922312,6.3271,199.56,199.49,0.12549]
[1735121923385,6.3271,199.56,199.48,0.12549]
[1735121923797,6.3271,199.56,199.46,12.5338]
[1735121924501,0.93956624,199.6,199.47,30.12549]
[1735121924706,0.9394926,199.62,199.47,30.12549]
[1735121925080,0.9394926,199.62,199.51,0.12549]
[1735121925301,6.3271,199.63,199.51,23.902374]
[1735121925512,6.3271,199.63,199.53,0.12549]
[1735121925679,6.3271,199.63,199.55,0.12549]
[1735121927109,6.3271,199.63,199.53,12.5292]
[1735121927415,6.3271,199.63,199.53,30.0]
[1735121928088,6.3271,199.63,199.54,23.902374]
[1735121929412,6.3108,199.67,199.59,20.0]
[1735121929705,0.9390798,199.66,199.59,20.0]
[1735121929918,0.93917564,199.66,199.54,66.305684]
[1735121930207,0.93917564,199.66,199.51,1.6517]
[1735121930208,0.93917564,199.66,199.52,30.0]
[1735121930715,0.93917564,199.66,199.53,36.306284]
[1735121931010,0.93917564,199.66,199.53,12.5294]
[1735121931225,0.93917564,199.66,199.53,42.5294]
[1735121931525,0.93917564,199.66,199.54,0.12549]
[1735121932586,0.93917564,199.66,199.54,30.12549]
[1735121932790,0.93917564,199.66,199.53,12.5294]
[1735121933095,0.93917564,199.66,199.51,31.6517]
[1735121933393,0.93917564,199.66,199.54,20.0]
[1735121933807,0.93917564,199.66,199.49,42.5313]
[1735121934303,0.93917564,199.66,199.52,20.0]
[1735121934705,13.46107564,199.66,199.52,20.0]
[1735121935997,13.46107564,199.66,199.49,12.5313]
[1735121936304,13.46107564,199.66,199.49,42.5313]
[1735121937833,13.46107564,199.66,199.49,12.5313]
[1735121938133,13.46107564,199.66,199.5,30.12549]
[1735121938430,13.46107564,199.66,199.51,12.5307]
[1735121939305,13.46107564,199.66,199.48,60.13]
[1735121939601,13.46107564,199.66,199.48,72.6625]
[1735121940729,13.46107564,199.66,199.48,42.5325]
[1735121940906,6.603,199.63,199.48,42.5325]
[1735121941107,0.93955812,199.62,199.48,42.5325]
[1735121941406,0.93955812,199.62,199.49,0.12549]
[1735121941613,13.45776642,199.71,199.56,30.0]
[1735121941909,13.45776642,199.71,199.55,20.0]
[1735121942110,13.45776642,199.71,199.52,20.0]
[1735121942334,6.603,199.7,199.52,20.0]
[1735121942540,0.93934501,199.69,199.52,20.0]
[1735121943301,0.93934501,199.69,199.52,32.5297]
[1735121944646,0.93934501,199.69,199.57,30.12549]
[1735121945015,0.93934501,199.69,199.55,30.0]
[1735121945236,0.93934501,199.69,199.57,20.0]
[1735121945733,0.87887476,199.69,199.57,20.0]
[1735121946329,0.87887476,199.69,199.54,12.5288]
[1735121947134,0.87887476,199.69,199.51,30.0]
[1735121947438,0.87887476,199.69,199.53,20.0]
[1735121947821,0.87887476,199.69,199.56,0.12549]
[1735121948815,0.87887476,199.69,199.58,20.0]
[1735121950350,6.603,199.7,199.6,20.0]
[1735121950524,0.87848978,199.69,199.6,20.0]
[1735121951412,0.87848978,199.69,199.54,12.5284]
[1735121952145,13.39788978,199.69,199.52,1.6014]
[1735121952348,0.87848978,199.69,199.53,42.5294]
[1735121952645,6.603,199.7,199.58,0.12549]
[1735121952847,6.603,199.7,199.6,0.12549]
[1735121953514,6.603,199.7,199.6,20.0]
[1735121953733,6.603,199.7,199.58,12.65159]
[1735121953945,0.87856868,199.69,199.58,12.65159]
[1735121954115,0.87856868,199.69,199.57,20.0]
[1735121954323,0.87856868,199.69,199.54,12.5283]
[1735121955545,13.39856868,199.69,199.52,30.0]
[1735121955852,0.87856868,199.69,199.51,30.0]
[1735121956550,0.87856868,199.69,199.52,0.12549]
[1735121956925,12.64549,199.68,199.49,12.5319]
[1735121957124,23.902374,199.63,199.45,49.04246195]
[1735121957323,6.5304,199.61,199.43,30.0]
[1735121957524,23.776884,199.57,199.38,64.56746519]
[1735121957765,0.8795376,199.56,199.38,50.061223]
[1735121957952,0.8795376,199.56,199.4,30.0]
[1735121958661,0.87946322,199.55,199.4,30.0]
[1735121958859,0.87946796,199.57,199.4,30.0]
[1735121959242,23.776884,199.56,199.39,12.5382]
[1735121959443,6.5304,199.54,199.39,12.5382]
[1735121959653,0.87958519,199.53,199.39,12.5382]
[1735121960469,0.87958519,199.53,199.37,1.637]
[1735121961133,13.40918519,199.53,199.37,1.637]
[1735121961760,13.40918519,199.53,199.38,20.0]
[1735121963342,0.87958519,199.53,199.38,20.0]
[1735121963762,0.87958519,199.53,199.4,20.0]
[1735121963959,6.5304,199.52,199.4,20.0]
[1735121964162,0.87964782,199.51,199.4,20.0]
[1735121965354,0.87964782,199.51,199.41,32.66239]
[1735121965538,6.5304,199.52,199.42,20.0]
[1735121965746,6.5304,199.52,199.44,20.0]
[1735121966947,6.5304,199.52,199.44,32.535]
[1735121967264,6.5304,199.52,199.46,20.0]
[1735121967654,6.5304,199.52,199.47,20.0]
[1735121969669,6.5304,199.52,199.44,12.535]
[1735121970237,0.87941811,199.51,199.41,12.5369]
[1735121970439,0.87941811,199.51,199.37,14.1759]
[1735121971180,0.879563,199.5,199.39,30.0]
[1735121971350,0.879563,199.51,199.39,30.0]
[1735121971745,0.879563,199.51,199.41,12.5369]
[1735121971955,6.5304,199.52,199.41,42.5369]
[1735121974147,6.5304,199.52,199.43,12.5357]
[1735121974835,6.5304,199.52,199.44,23.776884]
[1735121975346,6.0913,199.61,199.46,23.776884]
[1735121975540,0.87916788,199.6,199.46,23.776884]
[1735121976269,0.87916788,199.6,199.46,36.310484]
[1735121976446,0.87916788,199.6,199.44,20.0]
[1735121976771,0.87916788,199.6,199.46,20.0]
[1735121977847,0.12549,199.58,199.42,12.5358]
[1735121978071,23.776884,199.57,199.42,12.5358]
[1735121978269,0.87946073,199.56,199.42,12.5358]
[1735121978842,0.87946073,199.56,199.39,12.5381]
[1735121979168,0.87946073,199.56,199.42,20.0]
[1735121979467,0.87941243,199.55,199.42,20.0]
[1735121979641,0.87941084,199.58,199.42,20.0]
[1735121979841,0.87941084,199.58,199.43,12.5357]
[1735121981565,36.303784,199.57,199.41,20.0]
[1735121981767,0.87957805,199.56,199.43,20.0]
[1735121982645,0.87957805,199.56,199.43,32.5356]
[1735121982845,0.87947281,199.55,199.43,32.5356]
[1735121983145,0.87947539,199.58,199.43,32.5356]
[1735121984970,0.87947539,199.58,199.4,30.0]
[1735121985176,0.87947539,199.58,199.44,30.0]
[1735121985551,0.87947539,199.58,199.43,23.902374]
[1735121986273,0.87947539,199.58,199.45,12.5344]
[1735121986572,6.0913,199.59,199.49,20.0]
[1735121987163,0.87909005,199.58,199.49,20.0]
[1735121987371,6.0913,199.59,199.49,20.0]
[1735121987673,0.87909442,199.58,199.49,32.5317]
[1735121987972,6.3667,199.64,199.55,20.0]
[1735121988174,6.3667,199.69,199.57,20.0]
[1735121988351,0.87877542,199.68,199.57,20.0]
[1735121988850,0.87877542,199.68,199.56,20.0]
[1735121989075,0.87877542,199.68,199.58,20.0]
[1735121991181,0.87877542,199.68,199.56,20.0]
[1735121991392,23.776884,199.67,199.52,20.0]
[1735121991558,0.87898522,199.66,199.52,20.0]
[1735121991891,0.87898522,199.66,199.52,50.0]
[1735121992074,0.87888876,199.68,199.53,20.0]
[1735121992682,0.87888876,199.68,199.52,20.0]
[1735121993264,23.776884,199.67,199.49,12.5315]
[1735121993487,0.87902014,199.66,199.49,12.5315]
[1735121994393,6.3667,199.64,199.49,12.5315]
[1735121994571,0.87916186,199.63,199.49,12.5315]
[1735121994894,0.87916186,199.63,199.46,30.0]
[1735121995261,0.87916186,199.63,199.45,12.534]
[1735121995468,0.87916186,199.63,199.45,42.534]
[1735121996083,0.87916186,199.63,199.45,12.534]
[1735121996686,0.87916186,199.63,199.48,20.0]
[1735121996885,0.87916186,199.63,199.5,20.0]
[1735121999890,0.87916186,199.63,199.54,20.0]
[1735122000191,6.3667,199.64,199.54,20.0]
[1735122000574,0.87885895,199.63,199.53,20.0]
[1735122001978,0.87885895,199.63,199.51,12.5307]
[1735122003097,0.87885895,199.63,199.5,20.0]
[1735122003293,0.87885895,199.63,199.47,12.5326]
[1735122003600,0.87885895,199.63,199.48,0.12549]
[1735122003771,6.3667,199.64,199.56,0.12549]
[1735122004396,6.3667,199.64,199.57,30.0]
[1735122004698,6.3667,199.64,199.56,23.902374]
[1735122005083,6.3667,199.64,199.57,12.5269]
[1735122005608,6.3667,199.64,199.56,20.0]
[1735122006196,6.3667,199.64,199.57,20.0]
[1735122006896,6.3667,199.64,199.56,20.0]
[1735122007483,0.93933491,199.63,199.49,42.5314]
[1735122007690,0.93933491,199.63,199.49,12.5314]
[1735122007884,23.776884,199.62,199.45,12.5343]
[1735122008080,6.576,199.6,199.45,12.5343]
[1735122008288,0.93973526,199.59,199.44,30.0]
[1735122008592,6.576,199.57,199.37,7.6285727]
[1735122008794,24.71696653,199.56,199.37,37.6285727]
[1735122008974,0.94008253,199.56,199.4,0.12549]
[1735122009175,0.94008253,199.56,199.39,30.0]
[1735122009479,0.94008253,199.56,199.4,0.12549]
[1735122009695,0.94008253,199.56,199.39,30.0]
[1735122009998,0.94008253,199.56,199.42,20.0]
[1735122010365,0.94008253,199.56,199.4,0.12549]
[1735122011785,0.94008253,199.56,199.42,20.0]
[1735122012309,0.94008253,199.56,199.41,20.0]
[1735122012686,0.94008253,199.56,199.41,62.5369]
[1735122012883,0.94008253,199.56,199.42,0.12549]
[1735122013080,0.94008253,199.56,199.44,0.12549]
[1735122013299,6.576,199.57,199.5,20.0]
[1735122013505,6.576,199.57,199.51,0.12549]
[1735122013913,6.576,199.64,199.53,0.12549]
[1735122014096,0.93940672,199.63,199.53,0.12549]
[1735122014591,12.5192,199.7,199.59,0.12549]
[1735122014592,0.83045357,199.69,199.59,0.12549]
[1735122014909,0.93910981,199.69,199.58,0.12549]
[1735122015206,0.93903752,199.69,199.58,0.12549]
[1735122015411,6.576,199.7,199.58,0.12549]
[1735122015583,0.93904956,199.69,199.58,0.12549]
[1735122015790,0.93904956,199.69,199.6,20.0]
[1735122016197,0.93904956,199.69,199.61,0.12549]
[1735122016503,0.93893031,199.69,199.61,0.12549]
[1735122016709,0.93893031,199.69,199.6,20.0]
[1735122017009,0.93893031,199.69,199.59,20.0]
[1735122017190,0.93893031,199.69,199.6,0.12549]
[1735122017511,6.576,199.7,199.61,20.0]
[1735122017920,6.576,199.7,199.59,20.12549]
[1735122018289,6.576,199.7,199.61,20.0]
[1735122018817,6.576,199.7,199.63,20.0]
[1735122020717,6.576,199.7,199.65,20.0]
[1735122020897,6.4359,199.76,199.65,20.0]
[1735122021093,0.93882811,199.75,199.65,20.0]
[1735122021296,25.0203,199.84,199.62,42.64919]
[1735122021297,7.37473089,199.81,199.68,23.902374]
[1735122021519,6.4359,199.81,199.72,20.0]
[1735122022128,0.93849157,199.8,199.65,36.09043671]
[1735122022303,0.93849157,199.8,199.57,1.97431811]
[1735122022304,0.93849157,199.8,199.68,20.0]
[1735122023323,6.4359,199.81,199.69,0.12549]
[1735122023514,6.4359,199.81,199.71,30.0]
[1735122024019,6.4359,199.81,199.72,0.12549]
[1735122024812,6.4359,199.81,199.74,20.0]
[1735122026307,6.4359,199.86,199.76,20.0]
[1735122026499,0.93834056,199.85,199.76,20.0]
[1735122027436,6.4359,199.86,199.76,20.0]
[1735122028028,6.4359,199.86,199.78,20.0]
[1735122028205,6.4359,199.86,199.79,0.12549]
[1735122028630,6.4359,199.93,199.79,0.12549]
[1735122028836,0.93809473,199.92,199.8,20.0]
[1735122029339,0.93809473,199.92,199.81,0.12549]
[1735122029639,6.4359,199.93,199.86,0.12549]
[1735122029813,6.4359,199.93,199.81,53.776884]
[1735122030441,6.23084199,199.95,199.86,20.0]
[1735122030621,6.23084199,199.95,199.87,0.12549]
[1735122031014,0.93779601,199.94,199.86,20.0]
[1735122031348,6.23084199,199.95,199.87,0.12549]
[1735122031838,6.23084199,199.95,199.87,20.12549]
[1735122033238,6.23084199,199.95,199.9,0.12549]
[1735122033741,6.23084199,199.95,199.91,30.0]
[1735122033938,6.23084199,199.95,199.88,20.0]
[1735122034234,6.23084199,199.95,199.9,20.0]
[1735122034431,6.23084199,199.95,199.91,0.12549]
[1735122034623,6.23084199,199.95,199.91,30.12549]
[1735122035033,6.23084199,199.95,199.91,20.0]
[1735122036409,6.23084199,199.95,199.9,20.0]
[1735122036838,6.23084199,199.95,199.9,32.5061]
[1735122037340,6.23084199,199.95,199.9,20.0]
[1735122038842,6.23084199,199.95,199.89,20.0]
[1735122039143,6.23084199,199.95,199.9,20.0]
[1735122042345,6.23084199,199.95,199.91,0.12549]
[1735122042540,3.50464199,199.95,199.91,42.5056]
[1735122042715,3.50464199,199.95,199.94,20.0]
[1735122043115,3.50464199,199.95,199.94,32.5037]
[1735122043856,3.50464199,199.95,199.94,20.0]
[1735122045440,3.50464199,199.95,199.93,20.0]
[1735122045639,3.50464199,199.95,199.94,20.0]
[1735122045939,4.199e-05,199.95,199.94,73.902374]
[1735122046117,4.199e-05,199.95,199.94,20.12549]
[1735122046320,4.199e-05,199.95,199.94,20.0]
[1735122047711,4.199e-05,199.95,199.94,50.12549]
[1735122049141,4.199e-05,199.95,199.94,73.902374]
[1735122049336,4.199e-05,199.95,199.94,50.12549]
[1735122050023,4.199e-05,199.95,199.94,73.902374]
[1735122050223,4.199e-05,199.95,199.94,86.03611424]
[1735122050536,4.199e-05,199.95,199.94,56.16879353]
[1735122051246,4.199e-05,199.95,199.94,50.12549]
[1735122052546,4.199e-05,199.95,199.94,73.902374]
[1735122054548,6.5493,200.12,199.99,30.0]
[1735122054750,97.0421,200.0,199.99,53.902374]
[1735122054923,97.0421,200.0,199.99,55.469574]
[1735122054924,55.29986201,200.0,199.99,55.469574]
[1735122055236,6.201e-05,200.0,199.99,55.469574]
[1735122056235,6.201e-05,200.0,199.99,67.970174]
[1735122057748,6.1249,200.17,200.07,30.0]
[1735122058434,6.1249,200.17,200.05,12.4968]
[1735122058637,0.93679541,200.16,200.05,12.4968]
[1735122060061,0.93679541,200.16,200.04,30.0]
[1735122060387,0.93679541,200.16,200.04,50.0]
[1735122060724,0.93679541,200.16,200.04,20.0]
[1735122061857,0.93679541,200.16,200.05,0.12549]
[1735122062034,0.93679541,200.16,200.04,20.0]
[1735122062237,1.5872,200.15,200.02,30.0]
[1735122062440,0.93711759,200.14,200.01,12.4992]
[1735122063648,6.3889,200.13,199.98,12.5012]
[1735122063853,0.93725651,200.12,199.98,12.5012]
[1735122065052,0.93725651,200.12,200.0,12.5]